{"text_format":"1","workbook":"xlsx","n_sheets":3,"sheets":["1","2","3"],"not_rendered":{"charts":0,"images":1,"macros":1,"external_links":0,"defined_names":28,"comments":0,"pivot_tables":0},"unopened":[],"bounds":{"document_bytes":16777216,"sheet_cells":100000,"rows_first":2000,"rows_last":500,"rows_between":2000,"halvings":0,"cell_chars":16384,"cell_head_chars":4096},"cells_cut":0,"cells_raw":0,"read":"whole","date_system":"1900"}

{"sheet":"1","index":0,"n_rows":55,"n_cols":30,"rows_kept":55,"cut":false,"hidden":false,"merged":[[0,11,0,19],[1,11,1,19],[3,13,3,23],[4,13,4,23],[17,18,17,27],[16,5,16,12],[1,23,1,27],[2,0,2,8],[10,8,10,27],[12,11,12,27],[16,17,16,27],[30,22,30,26],[31,22,31,26],[54,1,55,27],[49,18,49,27],[51,18,51,27],[52,18,52,27],[37,1,37,27],[40,6,40,27],[44,1,46,27],[49,3,49,10],[51,3,51,10],[18,7,18,11],[21,2,22,27],[24,6,24,12],[2,9,2,12],[38,2,38,27],[7,0,7,27],[3,9,3,12],[4,9,4,12],[5,9,5,12],[32,22,32,26],[33,22,33,26],[34,22,34,26],[35,22,35,26],[26,7,26,27],[28,22,28,26],[29,22,29,26]]}
[null,null,null,null,null,null,null,null,null,null,null,"National Board of Revenue",null,null,null,null,null,null,null,null,null,null,null,null,null,null,null,null,null,"Author : Mohammad Yasin, Advocate, VC, ITP, 01572-230626"]
[null,null,null,null,null,null,null,null,null,null,null,"www.nbr.gov.bd",null,null,null,null,null,null,null,null,null,null,null,"IT-GHA (2023)",null,null,null,null,null,"YouTube : https://www.youtube.com/channel/UCGktIjxs80O0XmOn6ghQ_yw"]
["For official use",null,null,null,null,null,null,null,null,null,null,null,null,null,null,null,null,null,null,null,null,null,null,null,null,null,null,null,null,"fb : https://www.facebook.com/yasinshoponvc"]
["Serial Number of Return Register",null,null,null,null,null,null,null,null,null,null,null,null,"RETURN OF INCOME"]
["Volume Number of Return Register",null,null,null,null,null,null,null,null,null,null,null,null,"For Individual Person"]
["Date of Return Submission"]
[]
["[Applicable for individual person having taxable income below Tk. 5,00,000 and total asset below Tk. 40,00,000]"]
[]
[]
[null,"1.","Name of the Taxpayer:"]
[]
[null,"2.","NID / Passport Number (if no NID):"]
[]
[null,"3.","TIN: "]
[]
[null,"4.","(a) Circle:",null,null,null,null,null,null,null,null,null,null,"(b) Taxes Zone:"]
[]
[null,"5.","Asssessment Year:",null,null,null,null,null,null,null,null,null,"6.  Residential Status:",null,null,null,null,null,"Resident  ",null,null,"√",null,null,null,"/  Non-resident"]
[]
[null,"7.","Address of Contact / Employer / Name of Business organization:"]
[]
[]
[]
[null,null,"Mobile/Phone:"]
[]
[null,"8.","Source of Income :"]
[]
[null,"9.","Total Asset",null,null,null,null,null,null,null,null,null,null,null,null,null,null,null,null,null,null,":"]
[null,"10.","Total Income",null,null,null,null,null,null,null,null,null,null,null,null,null,null,null,null,null,null,":"]
[null,"11.","Chargeable Tax",null,null,null,null,null,null,null,null,null,null,null,null,null,null,null,null,null,null,":"]
[null,"12.","Tax Rebate",null,null,null,null,null,null,null,null,null,null,null,null,null,null,null,null,null,null,":"]
[null,"13.","Tax Payable",null,null,null,null,null,null,null,null,null,null,null,null,null,null,null,null,null,null,":"]
[null,"14.","Tax Deducted / Collected at Source (if any)",null,null,null,null,null,null,null,null,null,null,null,null,null,null,null,null,null,null,":"]
[null,"15.","Tax Paid with this Return",null,null,null,null,null,null,null,null,null,null,null,null,null,null,null,null,null,null,":"]
[null,"16.","Lifestyle Expense",null,null,null,null,null,null,null,null,null,null,null,null,null,null,null,null,null,null,":"]
[]
[null,"Verification"]
[null,"I,",{"$f":"'1'!$J$11","v":0}]
[]
[null,"Father / Husband"]
[]
[null,"TIN:",null,{"$f":"'1'!$G$15","v":0},{"$f":"'1'!$H$15","v":0},{"$f":"'1'!$I$15","v":0},{"$f":"'1'!$J$15","v":0},{"$f":"'1'!$K$15","v":0},{"$f":"'1'!$L$15","v":0},{"$f":"'1'!$M$15","v":0},{"$f":"'1'!$N$15","v":0},{"$f":"'1'!$O$15","v":0},{"$f":"'1'!$P$15","v":0},{"$f":"'1'!$Q$15","v":0},{"$f":"'1'!$R$15","v":0}]
[]
[null,"declares that the information given in this return, statement and attached evidences are correct and complete to the best of my belief and knowledge. Besides I am not a Shareholder of any company, I have no motor vehicle, I have no asset abroad and I do not own any house property or apartment in any city corporation area."]
[]
[]
[]
[]
[null,"Place:",null,null,null,null,null,null,null,null,null,null,null,null,null,null,null,null,"Signature "]
[]
[null,"Date:",null,null,null,null,null,null,null,null,null,null,null,null,null,null,null,null,{"$f":"UPPER(C39)","v":"0"}]
[null,null,null,null,null,null,null,null,null,null,null,null,null,null,null,null,null,null,"(Name in block letters)"]
[]
[null,"Optional: Please give short details of Tax calculation, statement of lifestyle expenses, list of proof attached statement of assets and liabilities"]

{"sheet":"2","index":1,"n_rows":26,"n_cols":3,"rows_kept":26,"cut":false,"hidden":false,"merged":[[40,1,40,2],[1,1,1,2],[2,2,3,2],[7,2,15,2],[17,2,18,2],[22,2,23,2]]}
[]
[null,"Instructions:"]
[null,"1.","This return of income shall be signed and verified by the individual person as prescribed by the Income Tax Act, 2023. "]
[]
[]
[null,"2."," Enclose where applicable:"]
[]
[null,null,"a. Salary statement for salary income; Bank statement for interest; Certificate for interest on savings instruments; Rent agreement, receipts of municipal tax and land revenue, statement of house property loan interest, insurance premium for house property income; Statement of professional income as per IT Rule-8; Copy of assessment/ income statement and balance sheet for partnership income; Documents of capital gain; Dividend warrant for dividend income; Statement of other income; Documents in support of investments in savings certificates, LIP, DPS, Zakat, stock/share etc.;"]
[]
[]
[]
[]
[]
[]
[]
[]
[]
[null,null,"b. Income and expenses account statement, production Accounts, commercial accounts, profit and loss accounts and balance sheet in case of business income;"]
[]
[]
[null,null,"c. Computation of income according to Income Tax Act, 2023."]
[]
[null,"3.","Documents furnished to support the declaration should be signed by the taxpayer or his/her authorized representative."]
[]
[]
[null,"4.","If needed, please use separate sheet."]

{"sheet":"3","index":2,"n_rows":23,"n_cols":19,"rows_kept":23,"cut":false,"hidden":false,"merged":[[0,0,0,27],[1,0,1,27],[3,0,3,27],[5,4,5,11],[8,8,8,27],[9,10,9,27],[11,4,11,8],[11,18,11,27],[22,1,22,6],[22,11,22,27],[13,0,13,6],[14,0,14,6],[16,10,16,17],[13,9,13,13],[14,9,14,13],[17,10,17,17],[18,10,18,17]]}
[]
["Government of the People’s Republic of Bangladesh\nNational Board of Revenue\n(Income Tax Office)"]
[]
["Acknowledgement Receipt/Certificate of Retrun of Income"]
[]
[null,null,null,null,"Assessment year",null,null,null,null,null,null,null,2,0,2,3,"-",2,4]
[]
[]
["Name of the Taxpayer",null,null,null,null,null,null,":",{"$f":"'1'!$J$11","v":0}]
["NID/ Passport No. (If No NID)",null,null,null,null,null,null,null,null,":",{"$f":"'1'!O13","v":0}]
["TIN",null,":",{"$f":"'1'!$G$15","v":0},{"$f":"'1'!$H$15","v":0},{"$f":"'1'!$I$15","v":0},{"$f":"'1'!$J$15","v":0},{"$f":"'1'!$K$15","v":0},{"$f":"'1'!$L$15","v":0},{"$f":"'1'!$M$15","v":0},{"$f":"'1'!$N$15","v":0},{"$f":"'1'!$O$15","v":0},{"$f":"'1'!$P$15","v":0},{"$f":"'1'!$Q$15","v":0},{"$f":"'1'!$R$15","v":0}]
["(a) Circle",null,null,":",{"$f":"'1'!F17","v":0},null,null,null,null,null,null,null,null,null,null,null,"(b) Taxes Zone",":",{"$f":"'1'!S17","v":0}]
[]
["Total Income Showon",null,null,null,null,null,null,":","Tk.",{"$f":"'1'!W30","v":0}]
["Total Tax Paid",null,null,null,null,null,null,":",{"$f":"I14","v":"Tk."},{"$f":"'1'!W34+'1'!W35","v":0}]
[]
["Serial No. of Return Register",null,null,null,null,null,null,null,null,":"]
["Volume No. of Return Register",null,null,null,null,null,null,null,null,":"]
["Date of Return Submission",null,null,null,null,null,null,null,null,":"]
[]
[]
[]
[null,"Seal of Tax Office",null,null,null,null,null,null,null,null,null,"Signature and Seal of the Offical Receving the Return"]